[Event "7th Leer Open-A 2024"]
[Site "Leer"]
[Date "2024.10.31"]
[Round "2.15"]
[White "Weidemann, Jakob"]
[Black "Udelnov, Valentin"]
[Result "1/2-1/2"]
[ECO "C54"]
[WhiteElo "2217"]
[BlackElo "2045"]
[Annotator "RC"]
[PlyCount "106"]
[EventDate "2024.10.14"]
[EventType "swiss"]
[EventCountry "GER"]
[SourceTitle "playchess.com"]
[Source "ChessBase"]
[SourceQuality "1"]
[TimeControl "40/5400+30:900+30"]

1. e4 {[%emt 0:00:04]} e5 {[%emt 0:00:06]} 2. Nf3 {[%emt 0:00:07]} Nc6 {[%emt 0:00:08]} 3. Bc4 {[%emt 0:00:09]} Bc5 {[%emt 0:00:10]} 4. O-O {[%emt 0:00:11]} Nf6 {[%emt 0:00:09]} 5. d3 {[%emt 0:00:07]} d6 {[%emt 0:00:10]} 6. c3 {[%emt 0:00:11]} h6 {[%emt 0:00:12]} 7. Re1 {[%emt 0:00:14]} O-O {[%emt 0:00:06]} 8. h3 {[%emt 0:00:07]} Bb6 {[%emt 0:00:12]} 9. Nbd2 {[%emt 0:00:16]} Ne7 {[%emt 0:00:35]} 10. Nh4 {[%emt 0:01:35]} c6 {[%emt 0:08:10]} 11. Qf3 {[%emt 0:02:22]} Nh7 {[%emt 0:07:24]} 12. Nf1 {[%emt 0:00:59]} d5 {[%emt 0:09:28]} 13. Bb3 {[%emt 0:00:26]} Ng6 {[%emt 0:02:12]} 14. Nf5 {[%emt 0:01:08]} dxe4 {[%emt 0:18:45]} 15. dxe4 {[%emt 0:00:18]} Nh4 {[%emt 0:01:39]} 16. Qg4 {[%emt 0:06:45]} Nxf5 {[%emt 0:03:36]} 17. exf5 {[%emt 0:00:10]} Nf6 {[%emt 0:05:36]} 18. Qg3 {[%emt 0:00:53]} Kh8 {[%emt 0:01:12]} 19. Ne3 {[%emt 0:02:10]} e4 {[%emt 0:01:48]} 20. a4 {[%emt 0:07:59]} Bxe3 {[%emt 0:05:54]} 21. Bxe3 {[%emt 0:00:16]} Bxf5 {[%emt 0:00:12]} 22. Bc5 {[%emt 0:00:28]} Qd2 {[%emt 0:09:06]} 23. Bxf8 {[%emt 0:00:22]} Rxf8 {[%emt 0:00:01]} 24. Qe3 {[%emt 0:00:22]} Qxe3 {[%emt 0:00:07]} 25. fxe3 {[%emt 0:01:05]} Nd5 {[%emt 0:02:49]} 26. Rad1 {[%emt 0:01:35]} Be6 {[%emt 0:00:06]} 27. Bxd5 {[%emt 0:01:29]} cxd5 {[%emt 0:00:14]} 28. Rd4 {[%emt 0:01:22]} b6 {[%emt 0:03:38]} 29. Rb4 {[%emt 0:02:41]} Rb8 {[%emt 0:00:56]} 30. b3 {[%emt 0:00:20]} Rc8 {[%emt 0:02:18]} 31. Rc1 {[%emt 0:00:18]} Rc6 {[%emt 0:00:56]} 32. a5 {[%emt 0:00:27]} bxa5 {[%emt 0:00:19]} 33. Ra4 {[%emt 0:03:53]} Rc5 {[%emt 0:00:23]} 34. Kf2 {[%emt 0:00:32]} Rb5 {[%emt 0:05:35]} 35. Ra3 {[%emt 0:00:27]} g6 {[%emt 0:01:26]} 36. Ke1 {[%emt 0:00:17]} a4 {[%emt 0:00:10]} 37. b4 {[%emt 0:00:52]} d4 {[%emt 0:01:31]} 38. Rxa4 {[%emt 0:02:14]} dxe3 {[%emt 0:01:16]} 39. Rxa7 {[%emt 0:00:46]} Bc4 {[%emt 0:01:46]} 40. Rc7 {[%emt 0:04:14]} Bd3 {[%emt 0:00:14]} 41. g4 {[%emt 0:15:48]} Kg7 {[%emt 0:17:27]} 42. Rd1 {[%emt 0:10:02]} Rd5 {[%emt 0:05:12]} 43. c4 {[%emt 0:05:10]} Rd6 {[%emt 0:00:16]} 44. Re7 {[%emt 0:01:32]} Rd4 {[%emt 0:00:00]} 45. Rxe4 {[%emt 0:00:00]} Rxe4 {[%emt 0:00:00]} 46. Rxd3 {[%emt 0:00:00]} Rxc4 {[%emt 0:00:00]} 47. Rb3 {[%emt 0:00:00]} f5 {[%emt 0:00:00]} 48. gxf5 {[%emt 0:00:00]} gxf5 {[%emt 0:00:00]} 49. Ke2 {[%emt 0:00:00]} f4 {[%emt 0:00:00]} 50. Kf3 {[%emt 0:00:00]} Rc2 {[%emt 0:00:00]} 51. Kxf4 {[%emt 0:00:00]} e2 {[%emt 0:00:00]} 52. Re3 {[%emt 0:00:00]} Rb2 {[%emt 0:00:00]} 53. b5 {[%emt 0:00:00]} Rxb5 {[%emt 0:00:00]} 1/2-1/2

[Event "7th Leer Open-A 2024"]
[Site "Leer"]
[Date "2024.10.31"]
[Round "2.16"]
[White "Kort, Felix"]
[Black "Hielscher, Fabian"]
[Result "1-0"]
[ECO "D36"]
[WhiteElo "2005"]
[BlackElo "1872"]
[Annotator "RC"]
[PlyCount "105"]
[EventDate "2024.10.14"]
[EventType "swiss"]
[EventCountry "GER"]
[SourceTitle "playchess.com"]
[Source "ChessBase"]
[SourceQuality "1"]
[TimeControl "40/5400+30:900+30"]

1. d4 {[%emt 0:02:08]} d5 {[%emt 0:00:09]} 2. c4 {[%emt 0:00:10]} e6 {[%emt 0:00:07]} 3. Nc3 {[%emt 0:00:05]} Nf6 {[%emt 0:00:10]} 4. cxd5 {[%emt 0:00:06]} exd5 {[%emt 0:00:12]} 5. Bg5 {[%emt 0:00:15]} Nbd7 {[%emt 0:00:20]} 6. e3 {[%emt 0:00:46]} c6 {[%emt 0:00:20]} 7. Bd3 {[%emt 0:00:12]} Be7 {[%emt 0:00:33]} 8. Nge2 {[%emt 0:01:31]} O-O {[%emt 0:00:20]} 9. Qc2 {[%emt 0:00:23]} Re8 {[%emt 0:01:11]} 10. O-O {[%emt 0:00:54]} Nf8 {[%emt 0:00:39]} 11. Rab1 {[%emt 0:24:13]} a5 {[%emt 0:00:24]} 12. a3 {[%emt 0:08:02]} Ne4 {[%emt 0:06:25]} 13. Bxe7 {[%emt 0:07:11]} Qxe7 {[%emt 0:00:58]} 14. Bxe4 {[%emt 0:00:08]} dxe4 {[%emt 0:00:18]} 15. Ng3 {[%emt 0:00:04]} f5 {[%emt 0:01:24]} 16. f3 {[%emt 0:00:31]} exf3 {[%emt 0:16:03]} 17. Rxf3 {[%emt 0:00:19]} g6 {[%emt 0:00:16]} 18. e4 {[%emt 0:25:49]} f4 {[%emt 0:13:54]} 19. Nge2 {[%emt 0:05:54]} g5 {[%emt 0:02:45]} 20. e5 {[%emt 0:11:11]} Bg4 {[%emt 0:05:12]} 21. Rf2 {[%emt 0:04:50]} Nd7 {[%emt 0:14:35]} 22. Rd1 {[%emt 0:06:05]} Qf7 {[%emt 0:03:27]} 23. Ne4 {[%emt 0:00:27]} Qg6 {[%emt 0:08:16]} 24. h3 {[%emt 0:00:06]} Bf5 {[%emt 0:00:57]} 25. N2c3 {[%emt 0:00:14]} Kh8 {[%emt 0:07:32]} 26. Qe2 {[%emt 0:01:01]} g4 {[%emt 0:05:07]} 27. Rxf4 {[%emt 0:00:27]} gxh3 {[%emt 0:00:18]} 28. Nd6 {[%emt 0:00:49]} Rf8 {[%emt 0:04:58]} 29. Nxf5 {[%emt 0:00:31]} Rxf5 {[%emt 0:00:17]} 30. Rxf5 {[%emt 0:00:31]} Qxf5 {[%emt 0:00:15]} 31. Rf1 {[%emt 0:00:21]} Qe6 {[%emt 0:00:48]} 32. Rf3 {[%emt 0:00:44]} Rg8 {[%emt 0:00:12]} 33. g3 {[%emt 0:00:24]} Qg4 {[%emt 0:06:59]} 34. Qf2 {[%emt 0:00:28]} Qg6 {[%emt 0:00:51]} 35. Kh2 {[%emt 0:00:31]} c5 {[%emt 0:00:05]} 36. Nd5 {[%emt 0:00:36]} Qe6 {[%emt 0:01:17]} 37. Nf6 {[%emt 0:00:22]} Nxf6 {[%emt 0:00:47]} 38. Rxf6 {[%emt 0:00:07]} Qe8 {[%emt 0:00:29]} 39. Rf7 {[%emt 0:00:47]} Qe6 {[%emt 0:00:30]} 40. Rf6 {[%emt 0:00:37]} Qd5 {[%emt 0:00:33]} 41. Rd6 {[%emt 0:04:55]} Qg2+ {[%emt 0:00:51]} 42. Qxg2 {[%emt 0:00:42]} hxg2 {[%emt 0:00:05]} 43. Kxg2 {[%emt 0:00:43]} Re8 {[%emt 0:03:19]} 44. dxc5 {[%emt 0:05:02]} Rxe5 {[%emt 0:00:17]} 45. b4 {[%emt 0:02:15]} Re2+ {[%emt 0:03:50]} 46. Kf1 {[%emt 0:01:20]} Re3 {[%emt 0:00:30]} 47. Rd8+ {[%emt 0:01:08]} Kg7 {[%emt 0:00:03]} 48. Rd7+ {[%emt 0:00:05]} Kg6 {[%emt 0:00:10]} 49. Rxb7 {[%emt 0:00:05]} Rxa3 {[%emt 0:00:33]} 50. b5 {[%emt 0:00:20]} Rc3 {[%emt 0:00:21]} 51. c6 {[%emt 0:00:45]} a4 {[%emt 0:01:37]} 52. Ra7 {[%emt 0:00:09]} a3 {[%emt 0:00:12]} 53. Rxa3 {[%emt 0:02:12]} 1-0

[Event "7th Leer Open-A 2024"]
[Site "Leer"]
[Date "2024.10.31"]
[Round "2.17"]
[White "Rolf, Marco"]
[Black "Keyser, Robin"]
[Result "0-1"]
[ECO "D41"]
[WhiteElo "2059"]
[BlackElo "2225"]
[Annotator "RC"]
[PlyCount "54"]
[EventDate "2024.10.14"]
[EventType "swiss"]
[EventCountry "GER"]
[SourceTitle "playchess.com"]
[Source "ChessBase"]
[SourceQuality "1"]
[TimeControl "40/5400+30:900+30"]

1. d4 {[%emt 0:00:02]} Nf6 {[%emt 0:00:06]} 2. c4 {[%emt 0:00:20]} e6 {[%emt 0:00:06]} 3. Nc3 {[%emt 0:00:27]} d5 {[%emt 0:00:04]} 4. cxd5 {[%emt 0:00:09]} Nxd5 {[%emt 0:00:05]} 5. e4 {[%emt 0:00:13]} Nxc3 {[%emt 0:00:05]} 6. bxc3 {[%emt 0:00:03]} c5 {[%emt 0:00:05]} 7. Nf3 {[%emt 0:01:07]} cxd4 {[%emt 0:00:06]} 8. cxd4 {[%emt 0:00:04]} Bb4+ {[%emt 0:00:05]} 9. Bd2 {[%emt 0:00:07]} Bxd2+ {[%emt 0:00:05]} 10. Qxd2 {[%emt 0:00:06]} O-O {[%emt 0:00:05]} 11. Bc4 {[%emt 0:03:35]} Nd7 {[%emt 0:00:06]} 12. O-O {[%emt 0:00:30]} b6 {[%emt 0:00:04]} 13. Rfe1 {[%emt 0:00:39]} Bb7 {[%emt 0:00:10]} 14. Rad1 {[%emt 0:00:42]} Rc8 {[%emt 0:00:15]} 15. Bd3 {[%emt 0:03:50]} Nf6 {[%emt 0:06:29]} 16. Qf4 {[%emt 0:03:10]} h6 {[%emt 0:06:35]} 17. d5 {[%emt 0:03:39]} exd5 {[%emt 0:04:08]} 18. e5 {[%emt 0:00:08]} Qc7 {[%emt 0:01:50]} 19. Nd4 {[%emt 0:05:44]} Ne4 {[%emt 0:04:35]} 20. Nf5 {[%emt 0:09:23]} Rce8 {[%emt 0:51:57]} 21. f3 {[%emt 0:33:23]} Qc5+ {[%emt 0:03:55]} 22. Re3 {[%emt 0:34:09]} g5 {[%emt 0:11:10]} 23. Qg4 {[%emt 0:00:00]} Bc8 {[%emt 0:00:19]} 24. Rde1 {[%emt 0:00:00]} Rxe5 {[%emt 0:00:42]} 25. Nxh6+ {[%emt 0:00:00]} Kg7 {[%emt 0:00:49]} 26. Qh5 {[%emt 0:00:00]} Nf6 {[%emt 0:00:20]} 27. Nf5+ {[%emt 0:00:00]} Rxf5 {[%emt 0:09:44]} 0-1

[Event "7th Leer Open-A 2024"]
[Site "Leer"]
[Date "2024.10.31"]
[Round "2.18"]
[White "Ritscher, Jan-Paul"]
[Black "Tymura, Achim"]
[Result "1-0"]
[ECO "D45"]
[WhiteElo "2208"]
[BlackElo "2035"]
[Annotator "RC"]
[PlyCount "79"]
[EventDate "2024.10.14"]
[EventType "swiss"]
[EventCountry "GER"]
[SourceTitle "playchess.com"]
[Source "ChessBase"]
[SourceQuality "1"]
[TimeControl "40/5400+30:900+30"]

1. d4 {[%emt 0:00:03]} d5 {[%emt 0:04:52]} 2. c4 {[%emt 0:02:27]} c6 {[%emt 0:00:10]} 3. Nf3 {[%emt 0:00:36]} e6 {[%emt 0:00:19]} 4. Nc3 {[%emt 0:00:37]} Nf6 {[%emt 0:00:48]} 5. Qc2 {[%emt 0:01:40]} Nbd7 {[%emt 0:01:36]} 6. e4 {[%emt 0:01:21]} dxe4 {[%emt 0:02:44]} 7. Nxe4 {[%emt 0:00:15]} Nxe4 {[%emt 0:03:17]} 8. Qxe4 {[%emt 0:00:05]} Bb4+ {[%emt 0:02:18]} 9. Bd2 {[%emt 0:00:07]} Bxd2+ {[%emt 0:00:14]} 10. Nxd2 {[%emt 0:00:08]} Nf6 {[%emt 0:02:14]} 11. Qe3 {[%emt 0:01:05]} O-O {[%emt 0:00:48]} 12. Be2 {[%emt 0:00:24]} Qd6 {[%emt 0:03:12]} 13. O-O {[%emt 0:01:30]} b6 {[%emt 0:02:51]} 14. c5 {[%emt 0:09:53]} Qc7 {[%emt 0:01:09]} 15. Rac1 {[%emt 0:01:40]} Nd5 {[%emt 0:03:41]} 16. Qa3 {[%emt 0:02:42]} b5 {[%emt 0:07:43]} 17. Rfd1 {[%emt 0:03:03]} e5 {[%emt 0:02:18]} 18. Bf3 {[%emt 0:02:48]} Be6 {[%emt 0:01:56]} 19. Ne4 {[%emt 0:01:11]} h6 {[%emt 0:03:03]} 20. Nd6 {[%emt 0:00:56]} exd4 {[%emt 0:01:53]} 21. Rxd4 {[%emt 0:00:07]} Rab8 {[%emt 0:03:20]} 22. Qd3 {[%emt 0:05:38]} Rfd8 {[%emt 0:02:33]} 23. Bd1 {[%emt 0:01:24]} Rxd6 {[%emt 0:04:39]} 24. cxd6 {[%emt 0:00:07]} Qxd6 {[%emt 0:00:06]} 25. Bb3 {[%emt 0:02:22]} Qe5 {[%emt 0:18:48]} 26. g3 {[%emt 0:08:00]} g6 {[%emt 0:13:20]} 27. Qd2 {[%emt 0:03:44]} Rb6 {[%emt 0:02:04]} 28. Re1 {[%emt 0:02:54]} Qf6 {[%emt 0:03:08]} 29. Rh4 {[%emt 0:07:40]} h5 {[%emt 0:03:20]} 30. Qd4 {[%emt 0:03:33]} Qxd4 {[%emt 0:01:23]} 31. Rxd4 {[%emt 0:00:06]} a5 {[%emt 0:02:56]} 32. a3 {[%emt 0:00:28]} a4 {[%emt 0:01:49]} 33. Ba2 {[%emt 0:00:20]} Nc7 {[%emt 0:00:12]} 34. Bxe6 {[%emt 0:00:14]} Nxe6 {[%emt 0:00:05]} 35. Rd6 {[%emt 0:00:07]} b4 {[%emt 0:00:30]} 36. Re4 {[%emt 0:00:50]} bxa3 {[%emt 0:00:50]} 37. bxa3 {[%emt 0:00:08]} Nc5 {[%emt 0:01:23]} 38. Rc4 {[%emt 0:00:18]} Nb7 {[%emt 0:00:23]} 39. Rdxc6 {[%emt 0:00:15]} Rb1+ {[%emt 0:00:15]} 40. Kg2 {[%emt 0:00:16]} 1-0

[Event "7th Leer Open-A 2024"]
[Site "Leer"]
[Date "2024.10.31"]
[Round "2.19"]
[White "Spiric, Igor"]
[Black "Herzwurm, Robert"]
[Result "1-0"]
[ECO "E81"]
[WhiteElo "2171"]
[BlackElo "1955"]
[Annotator "RC"]
[PlyCount "115"]
[EventDate "2024.10.14"]
[EventType "swiss"]
[EventCountry "GER"]
[SourceTitle "playchess.com"]
[Source "ChessBase"]
[SourceQuality "1"]
[TimeControl "40/5400+30:900+30"]

1. d4 {[%emt 0:00:02]} Nf6 {[%emt 0:00:07]} 2. c4 {[%emt 0:00:23]} g6 {[%emt 0:00:08]} 3. Nc3 {[%emt 0:00:04]} Bg7 {[%emt 0:00:10]} 4. e4 {[%emt 0:00:03]} d6 {[%emt 0:00:08]} 5. f3 {[%emt 0:00:17]} O-O {[%emt 0:00:16]} 6. Be3 {[%emt 0:00:04]} c5 {[%emt 0:00:19]} 7. dxc5 {[%emt 0:00:05]} dxc5 {[%emt 0:00:12]} 8. Qxd8 {[%emt 0:00:05]} Rxd8 {[%emt 0:00:06]} 9. e5 {[%emt 0:00:05]} Ne8 {[%emt 0:00:32]} 10. Nd5 {[%emt 0:11:15]} Nc6 {[%emt 0:04:28]} 11. O-O-O {[%emt 0:00:42]} Be6 {[%emt 0:05:40]} 12. Bxc5 {[%emt 0:07:38]} Bxe5 {[%emt 0:23:00]} 13. f4 {[%emt 0:00:52]} Bg7 {[%emt 0:11:28]} 14. Nf3 {[%emt 0:04:48]} Rdc8 {[%emt 0:15:41]} 15. Kb1 {[%emt 0:05:16]} Nf6 {[%emt 0:05:29]} 16. Ng5 {[%emt 0:17:50]} Bg4 {[%emt 0:04:56]} 17. Re1 {[%emt 0:03:53]} Bf5+ {[%emt 0:03:48]} 18. Ka1 {[%emt 0:01:31]} Nxd5 {[%emt 0:05:07]} 19. cxd5 {[%emt 0:02:00]} Nd4 {[%emt 0:00:59]} 20. Bxd4 {[%emt 0:00:15]} Bxd4 {[%emt 0:00:07]} 21. Nf3 {[%emt 0:04:53]} Bf6 {[%emt 0:02:17]} 22. Ne5 {[%emt 0:01:55]} Be4 {[%emt 0:02:54]} 23. Rg1 {[%emt 0:10:58]} Bxd5 {[%emt 0:01:52]} 24. Bd3 {[%emt 0:00:22]} Rc7 {[%emt 0:02:08]} 25. g3 {[%emt 0:00:19]} Rac8 {[%emt 0:00:41]} 26. Kb1 {[%emt 0:00:51]} Bg7 {[%emt 0:05:00]} 27. h4 {[%emt 0:03:17]} Rd8 {[%emt 0:03:21]} 28. Rc1 {[%emt 0:11:38]} Bxe5 {[%emt 0:01:15]} 29. fxe5 {[%emt 0:00:08]} Bc6 {[%emt 0:01:48]} 30. Bc2 {[%emt 0:04:04]} Rd2 {[%emt 0:00:35]} 31. Rge1 {[%emt 0:00:20]} Bd5 {[%emt 0:00:34]} 32. Bxg6 {[%emt 0:06:41]} Bxa2+ {[%emt 0:00:40]} 33. Kxa2 {[%emt 0:00:17]} Rxc1 {[%emt 0:00:10]} 34. Bxh7+ {[%emt 0:01:21]} Kxh7 {[%emt 0:00:01]} 35. Rxc1 {[%emt 0:00:07]} Rd5 {[%emt 0:00:28]} 36. e6 {[%emt 0:00:35]} fxe6 {[%emt 0:00:52]} 37. Rc7 {[%emt 0:00:09]} Ra5+ {[%emt 0:00:47]} 38. Kb1 {[%emt 0:00:14]} Rb5 {[%emt 0:00:50]} 39. Rxe7+ {[%emt 0:00:08]} Kg6 {[%emt 0:00:12]} 40. Rxe6+ {[%emt 0:05:05]} Kf5 {[%emt 0:00:34]} 41. Rh6 {[%emt 0:14:30]} Rb4 {[%emt 0:03:37]} 42. Rh5+ {[%emt 0:00:00]} Kf6 {[%emt 0:00:12]} 43. Rc5 {[%emt 0:00:00]} Rg4 {[%emt 0:01:31]} 44. Rc3 {[%emt 0:00:00]} Rb4 {[%emt 0:01:14]} 45. Kc2 {[%emt 0:00:00]} Kf5 {[%emt 0:00:54]} 46. Rb3 {[%emt 0:00:00]} Rc4+ {[%emt 0:00:18]} 47. Kd3 {[%emt 0:00:00]} Rc7 {[%emt 0:00:07]} 48. Rb5+ {[%emt 0:00:00]} Kg4 {[%emt 0:00:33]} 49. Rg5+ {[%emt 0:00:00]} Kf3 {[%emt 0:00:16]} 50. h5 {[%emt 0:00:00]} a5 {[%emt 0:02:15]} 51. h6 {[%emt 0:00:00]} b5 {[%emt 0:03:36]} 52. Rxb5 {[%emt 0:00:00]} Kxg3 {[%emt 0:00:28]} 53. Rxa5 {[%emt 0:00:00]} Kg4 {[%emt 0:01:46]} 54. b4 {[%emt 0:00:00]} Rc6 {[%emt 0:00:20]} 55. h7 {[%emt 0:00:00]} Rh6 {[%emt 0:00:04]} 56. b5 {[%emt 0:00:00]} Rxh7 {[%emt 0:00:18]} 57. b6 {[%emt 0:00:00]} Kf4 {[%emt 0:01:18]} 58. Rb5 {[%emt 0:00:18]} 1-0

[Event "7th Leer Open-A 2024"]
[Site "Leer"]
[Date "2024.10.31"]
[Round "2.20"]
[White "Boehme, Arne"]
[Black "Wilmink, Anna"]
[Result "1-0"]
[ECO "B29"]
[WhiteElo "2137"]
[BlackElo "1908"]
[Annotator "RC"]
[PlyCount "75"]
[EventDate "2024.10.14"]
[EventType "swiss"]
[EventCountry "GER"]
[SourceTitle "playchess.com"]
[Source "ChessBase"]
[SourceQuality "1"]
[TimeControl "40/5400+30:900+30"]

1. e4 {[%emt 0:00:01]} c5 {[%emt 0:00:05]} 2. Nf3 {[%emt 0:00:03]} Nf6 {[%emt 0:00:04]} 3. e5 {[%emt 0:01:57]} Nd5 {[%emt 0:00:06]} 4. Nc3 {[%emt 0:00:21]} e6 {[%emt 0:00:19]} 5. Ne4 {[%emt 0:00:46]} f5 {[%emt 0:00:14]} 6. Nc3 {[%emt 0:00:02]} Nc6 {[%emt 0:02:12]} 7. Bc4 {[%emt 0:09:49]} Nb6 {[%emt 0:01:47]} 8. d3 {[%emt 0:06:57]} a6 {[%emt 0:12:37]} 9. Bb3 {[%emt 0:08:28]} Qc7 {[%emt 0:08:08]} 10. Bf4 {[%emt 0:06:28]} Na5 {[%emt 0:05:01]} 11. O-O {[%emt 0:01:48]} Nxb3 {[%emt 0:05:01]} 12. axb3 {[%emt 0:00:06]} d5 {[%emt 0:04:22]} 13. exd6 {[%emt 0:00:06]} Bxd6 {[%emt 0:00:09]} 14. Bxd6 {[%emt 0:00:23]} Qxd6 {[%emt 0:00:06]} 15. Re1 {[%emt 0:00:16]} O-O {[%emt 0:00:58]} 16. Qe2 {[%emt 0:01:37]} Bd7 {[%emt 0:05:07]} 17. Qe5 {[%emt 0:00:37]} Qxe5 {[%emt 0:07:13]} 18. Rxe5 {[%emt 0:00:05]} Rac8 {[%emt 0:02:13]} 19. Ra5 {[%emt 0:03:58]} Rf6 {[%emt 0:08:43]} 20. Rexc5 {[%emt 0:05:39]} Bc6 {[%emt 0:02:00]} 21. Ne5 {[%emt 0:02:32]} Nd7 {[%emt 0:05:47]} 22. Rxc6 {[%emt 0:03:09]} bxc6 {[%emt 0:03:15]} 23. Nxd7 {[%emt 0:00:06]} Rf7 {[%emt 0:00:23]} 24. Ne5 {[%emt 0:00:06]} Ra7 {[%emt 0:00:29]} 25. Na4 {[%emt 0:00:35]} Kf8 {[%emt 0:02:22]} 26. Nc5 {[%emt 0:00:01]} Ke7 {[%emt 0:00:23]} 27. d4 {[%emt 0:00:38]} Kf6 {[%emt 0:00:51]} 28. Kf1 {[%emt 0:00:16]} g5 {[%emt 0:02:04]} 29. Ke2 {[%emt 0:00:17]} h5 {[%emt 0:01:08]} 30. Rxa6 {[%emt 0:03:00]} Rxa6 {[%emt 0:00:56]} 31. Nxa6 {[%emt 0:00:01]} Ra8 {[%emt 0:00:06]} 32. Nb4 {[%emt 0:00:04]} Ra1 {[%emt 0:00:33]} 33. Nbxc6 {[%emt 0:00:18]} Rb1 {[%emt 0:00:29]} 34. Nd3 {[%emt 0:00:16]} Rh1 {[%emt 0:00:55]} 35. b4 {[%emt 0:00:22]} e5 {[%emt 0:02:09]} 36. b5 {[%emt 0:00:19]} e4 {[%emt 0:00:58]} 37. Ne1 {[%emt 0:00:02]} f4 {[%emt 0:00:31]} 38. b6 {[%emt 0:00:12]} 1-0

[Event "7th Leer Open-A 2024"]
[Site "Leer"]
[Date "2024.10.31"]
[Round "2.21"]
[White "Capelja, Christian"]
[Black "Kaeding, Rainer"]
[Result "1/2-1/2"]
[ECO "D31"]
[WhiteElo "2023"]
[BlackElo "2155"]
[Annotator "RC"]
[PlyCount "47"]
[EventDate "2024.10.14"]
[EventType "swiss"]
[EventCountry "GER"]
[SourceTitle "playchess.com"]
[Source "ChessBase"]
[SourceQuality "1"]
[TimeControl "40/5400+30:900+30"]

1. d4 {[%emt 0:03:23]} d5 {[%emt 0:00:16]} 2. c4 {[%emt 0:00:07]} e6 {[%emt 0:00:18]} 3. Nf3 {[%emt 0:00:29]} c6 {[%emt 0:00:34]} 4. Nc3 {[%emt 0:01:04]} dxc4 {[%emt 0:01:03]} 5. a4 {[%emt 1:27:57]} Bb4 {[%emt 0:00:36]} 6. g3 {[%emt 0:00:00]} b5 {[%emt 0:01:30]} 7. Bg2 {[%emt 0:00:00]} Bb7 {[%emt 0:01:04]} 8. O-O {[%emt 0:00:00]} a6 {[%emt 0:01:47]} 9. Ne5 {[%emt 0:00:00]} Qc8 {[%emt 0:00:55]} 10. axb5 {[%emt 0:00:00]} cxb5 {[%emt 0:00:56]} 11. d5 {[%emt 0:00:00]} f6 {[%emt 0:08:50]} 12. Nf7 {[%emt 0:00:00]} Kxf7 {[%emt 0:05:07]} 13. dxe6+ {[%emt 0:00:00]} Ke8 {[%emt 0:03:58]} 14. Nd5 {[%emt 0:00:00]} Bxd5 {[%emt 0:01:07]} 15. Qxd5 {[%emt 0:00:00]} Ra7 {[%emt 0:00:31]} 16. Be3 {[%emt 0:00:00]} Ne7 {[%emt 0:05:50]} 17. Qh5+ {[%emt 0:00:00]} g6 {[%emt 0:00:19]} 18. Qf3 {[%emt 0:00:00]} Bc5 {[%emt 0:01:28]} 19. Qxf6 {[%emt 0:00:00]} Rf8 {[%emt 0:00:25]} 20. Qe5 {[%emt 0:00:00]} Rf5 {[%emt 0:39:37]} 21. Qh8+ {[%emt 0:00:00]} Rf8 {[%emt 0:00:06]} 22. Qe5 {[%emt 0:00:00]} Rf5 {[%emt 0:00:12]} 23. Qh8+ {[%emt 0:00:00]} Rf8 {[%emt 0:00:34]} 24. Qe5 {[%emt 0:00:00]} 1/2-1/2

[Event "7th Leer Open-A 2024"]
[Site "Leer"]
[Date "2024.10.31"]
[Round "2.22"]
[White "Gremmel, Jonas Simon"]
[Black "Schaefer, Maik"]
[Result "1-0"]
[ECO "D38"]
[WhiteElo "2100"]
[BlackElo "1914"]
[Annotator "RC"]
[PlyCount "143"]
[EventDate "2024.10.14"]
[EventType "swiss"]
[EventCountry "GER"]
[SourceTitle "playchess.com"]
[Source "ChessBase"]
[SourceQuality "1"]
[TimeControl "40/5400+30:900+30"]

1. d4 {[%emt 0:00:03]} Nf6 {[%emt 0:00:24]} 2. Nf3 {[%emt 0:00:04]} d5 {[%emt 0:00:11]} 3. c4 {[%emt 0:00:05]} e6 {[%emt 0:00:20]} 4. Nc3 {[%emt 0:00:12]} Bb4 {[%emt 0:00:24]} 5. Qa4+ {[%emt 0:01:44]} Nc6 {[%emt 0:00:07]} 6. e3 {[%emt 0:00:30]} O-O {[%emt 0:00:58]} 7. Bd3 {[%emt 0:01:58]} dxc4 {[%emt 0:01:26]} 8. Bxc4 {[%emt 0:00:09]} Bd6 {[%emt 0:00:22]} 9. O-O {[%emt 0:07:15]} e5 {[%emt 0:00:26]} 10. dxe5 {[%emt 0:01:09]} Nxe5 {[%emt 0:00:32]} 11. Nxe5 {[%emt 0:06:14]} Bxe5 {[%emt 0:00:06]} 12. Rd1 {[%emt 0:00:25]} Qe7 {[%emt 0:01:53]} 13. Be2 {[%emt 0:00:25]} Bd7 {[%emt 0:04:08]} 14. Qc4 {[%emt 0:07:41]} Bc6 {[%emt 0:04:52]} 15. Bd2 {[%emt 0:00:18]} Rfd8 {[%emt 0:02:28]} 16. Be1 {[%emt 0:00:06]} a6 {[%emt 0:09:13]} 17. Rxd8+ {[%emt 0:18:06]} Rxd8 {[%emt 0:00:21]} 18. Rd1 {[%emt 0:02:58]} Rxd1 {[%emt 0:05:02]} 19. Nxd1 {[%emt 0:00:09]} Bb5 {[%emt 0:18:17]} 20. Qc2 {[%emt 0:00:09]} Bxe2 {[%emt 0:00:09]} 21. Qxe2 {[%emt 0:00:04]} Nd5 {[%emt 0:01:05]} 22. Qd3 {[%emt 0:09:41]} c6 {[%emt 0:01:06]} 23. g3 {[%emt 0:03:40]} g6 {[%emt 0:04:42]} 24. e4 {[%emt 0:02:00]} Nc7 {[%emt 0:03:37]} 25. f4 {[%emt 0:07:47]} Qd6 {[%emt 0:03:47]} 26. Qxd6 {[%emt 0:01:46]} Bxd6 {[%emt 0:00:20]} 27. Kf1 {[%emt 0:06:10]} Kf8 {[%emt 0:05:04]} 28. Ke2 {[%emt 0:00:18]} Ne6 {[%emt 0:02:50]} 29. Bc3 {[%emt 0:04:40]} Ke8 {[%emt 0:02:44]} 30. Nf2 {[%emt 0:07:27]} c5 {[%emt 0:04:07]} 31. Kd3 {[%emt 0:00:26]} b5 {[%emt 0:00:58]} 32. b3 {[%emt 0:00:10]} h5 {[%emt 0:02:56]} 33. Nd1 {[%emt 0:01:33]} Kd7 {[%emt 0:00:46]} 34. Ne3 {[%emt 0:01:45]} Nc7 {[%emt 0:04:43]} 35. e5 {[%emt 0:00:27]} Bf8 {[%emt 0:01:29]} 36. Ke4 {[%emt 0:00:11]} Kc6 {[%emt 0:05:42]} 37. h3 {[%emt 0:02:37]} Ne6 {[%emt 0:00:56]} 38. Nd5 {[%emt 0:01:05]} Ng7 {[%emt 0:03:02]} 39. Be1 {[%emt 0:02:18]} Ne6 {[%emt 0:01:49]} 40. Bc3 {[%emt 0:01:50]} Ng7 {[%emt 0:00:24]} 41. Ne3 {[%emt 0:16:38]} Ne6 {[%emt 0:16:40]} 42. g4 {[%emt 0:00:39]} hxg4 {[%emt 0:00:12]} 43. hxg4 {[%emt 0:00:03]} Bh6 {[%emt 0:01:59]} 44. g5 {[%emt 0:00:05]} Bf8 {[%emt 0:00:54]} 45. Ng4 {[%emt 0:00:06]} b4 {[%emt 0:02:08]} 46. Bb2 {[%emt 0:00:11]} Kd7 {[%emt 0:01:14]} 47. Nf6+ {[%emt 0:01:33]} Kc6 {[%emt 0:00:40]} 48. Nd5 {[%emt 0:01:16]} Ng7 {[%emt 0:00:38]} 49. Ne3 {[%emt 0:01:04]} Ne6 {[%emt 0:00:00]} 50. Nc4 {[%emt 0:00:00]} Be7 {[%emt 0:00:00]} 51. Nd2 {[%emt 0:00:00]} Ng7 {[%emt 0:00:00]} 52. Nf3 {[%emt 0:00:00]} Nf5 {[%emt 0:00:00]} 53. e6 {[%emt 0:00:00]} Nd6+ {[%emt 0:00:00]} 54. Ke5 {[%emt 0:00:00]} c4 {[%emt 0:00:00]} 55. exf7 {[%emt 0:00:00]} c3 {[%emt 0:00:44]} 56. Bc1 {[%emt 0:00:00]} Kd7 {[%emt 0:02:11]} 57. f8=N+ {[%emt 0:00:00]} Bxf8 {[%emt 0:00:10]} 58. Kf6 {[%emt 0:00:00]} Ne4+ {[%emt 0:00:41]} 59. Kxg6 {[%emt 0:00:00]} Nc5 {[%emt 0:00:45]} 60. Nd4 {[%emt 0:00:00]} Nd3 {[%emt 0:00:24]} 61. Ne2 {[%emt 0:00:00]} a5 {[%emt 0:01:06]} 62. Kf7 {[%emt 0:00:00]} Bd6 {[%emt 0:00:24]} 63. g6 {[%emt 0:00:00]} Nxc1 {[%emt 0:01:17]} 64. Nxc1 {[%emt 0:00:00]} Bxf4 {[%emt 0:00:04]} 65. g7 {[%emt 0:00:00]} Bxc1 {[%emt 0:00:04]} 66. g8=Q {[%emt 0:00:00]} Ba3 {[%emt 0:00:38]} 67. Qg6 {[%emt 0:00:00]} Bb2 {[%emt 0:00:14]} 68. Qd3+ {[%emt 0:00:00]} Kc6 {[%emt 0:00:12]} 69. Ke6 {[%emt 0:00:00]} Kb6 {[%emt 0:00:14]} 70. Qc4 {[%emt 0:00:00]} Bc1 {[%emt 0:00:32]} 71. Kd7 {[%emt 0:00:00]} Be3 {[%emt 0:00:20]} 72. Qe6+ {[%emt 0:00:00]} 1-0